Cogmind - Beta 13 @@@ ROGUE MODE // 2024.04.10 @ 00:56:09 Player: Eschess Result: Core destroyed Performance ------------- Evolutions (6) 3000 Regions Visited (16) 3200 Robots Destroyed (46) 230 Value Destroyed (1730) 1730 Prototype IDs (4) 80 Alien Tech Used (0) 0 Bonus (2833) 2833 TOTAL SCORE: 11073 Bonus ------- High Alert Combat Kills 308 Follower Combat Kills 1425 Entered DSFs 500 Met Imprinter 300 Was Imprinted 300 Cogmind --------- Core Integrity 0/1150 Matter 101/300 Energy 423/550 System Corruption 0% Temperature Critical (615) Movement Hovering (102) Ox1 Location -4/Factory Parts ------- > --- POWER (2) -------- Antimatter Reactor Antimatter Reactor > --- PROPULSION (5) --- Improved Gyrokinetic Inverter Improved Gyrokinetic Inverter Improved Gyrokinetic Inverter > --- UTILITY (9) ------ Improved Focal Shield > --- WEAPON (3) ------- Matter Neutralizer Matter Neutralizer Matter Neutralizer > --- INVENTORY (5) ---- Antimatter Reactor High-capacity Matter Pod (0) Improved System Restoration Module Advanced Datajack Peak State ------------ > --- POWER ------------ Antimatter Reactor Antimatter Reactor > --- PROPULSION ------- Improved Treads Medium Treads Heavy Treads > --- UTILITY ---------- Improved Cooling System Improved Cooling System Enhanced Optical Array Hardened Medium Armor Plating Hardened Medium Armor Plating Hardened Medium Armor Plating Hardened Medium Armor Plating Improved Medium Armor Plating Experimental Thermal Shield > --- WEAPON ----------- Heavy Gauss Cannon Heavy Gauss Cannon Heavy Gauss Cannon > --- INVENTORY -------- Antimatter Reactor High-capacity Matter Pod Improved System Restoration Module Heavy Gauss Cannon [Rating: 93] Favorites ----------- Power Improved Deuterium Engine Engine Improved Deuterium Engine Power Core Neutrino Core Reactor Antimatter Reactor Propulsion Carbon-fiber Leg Treads Armored Treads Leg Carbon-fiber Leg Wheel Wheel Hover Unit Improved Gyrokinetic Inverter Flight Unit Flight Unit Utility Hacking Suite Device Experimental Sensor Array Storage Small Storage Unit Processor Improved Targeting Computer Hackware Hacking Suite Protection Hardened Medium Armor Plating Weapon Proton Missile Launcher Energy Gun Small Laser Energy Cannon Heavy Plasma Cannon Ballistic Gun Gauss Rifle Ballistic Cannon Improved Light Cannon Launcher Proton Missile Launcher Slashing Weapon Ripper Piercing Weapon Enhanced Force Lance Special Melee Weapon Datajack Build | -11 -10 -10 -10 -9 -8 -7 -7 -7 -7 -6 -6 -5 -5 -5 -5 -4 ------- Run | Yrd Mat Min Exi Min Mat Fac Low Low Zio Pro Fac Fac Was Fac DSF Fac Slots Evolved 12 | . . . . . 4 2 . . . . 2 2 . . . 2 Power 1 | . . . . . . . . . . . 1 . . . . . Propulsion 3 | . . . . . 1 1 . . . . . . . . . 1 Utility 7 | . . . . . 3 1 . . . . 1 2 . . . . Weapon 1 | . . . . . . . . . . . . . . . . 1 Parts Attached 122 | 7 15 . . 1 4 7 9 8 2 5 4 9 24 1 8 18 Power 15 | 1 2 . . . . 2 1 1 . . 1 2 2 . 1 2 Engine 9 | 1 2 . . . . 2 1 1 . . 1 1 . . . . Core 2 | . . . . . . . . . . . . 1 1 . . . Reactor 4 | . . . . . . . . . . . . . 1 . 1 2 Propulsion 33 | 2 3 . . . 1 2 4 3 . 2 . 4 6 . 1 5 Treads 7 | . . . . . . . 1 . . . . 2 2 . 1 1 Leg 11 | . . . . . . . . 3 . 2 . 2 4 . . . Wheel 2 | 2 . . . . . . . . . . . . . . . . Hover 6 | . . . . . . . 2 . . . . . . . . 4 Flight 7 | . 3 . . . 1 2 1 . . . . . . . . . Utility 29 | 2 2 . . 1 2 3 1 . 2 . 2 1 7 1 2 3 Device 13 | 1 1 . . 1 1 1 . . . . 2 . 3 . 1 2 Storage 3 | 1 . . . . . 1 . . . . . 1 . . . . Processor 6 | . . . . . 1 1 1 . 2 . . . . . 1 . Hackware 1 | . 1 . . . . . . . . . . . . . . . Protection 6 | . . . . . . . . . . . . . 4 1 . 1 Artifact . | . . . . . . . . . . . . . . . . . Weapon 45 | 2 8 . . . 1 . 3 4 . 3 1 2 9 . 4 8 Energy Gun 7 | 2 4 . . . . . . . . . . . 1 . . . Energy Cannon 8 | . . . . . . . . . . . 1 1 3 . . 3 Ballistic Gun 11 | . 2 . . . 1 . 1 1 . 2 . 1 2 . . 1 Ballistic Cannon 13 | . 1 . . . . . 2 . . 1 . . 2 . 4 3 Launcher 2 | . . . . . . . . 2 . . . . . . . . Special Weapon . | . . . . . . . . . . . . . . . . . Impact Weapon . | . . . . . . . . . . . . . . . . . Slashing Weapon 1 | . . . . . . . . 1 . . . . . . . . Piercing Weapon 1 | . . . . . . . . . . . . . 1 . . . Special Melee Weapon 2 | . 1 . . . . . . . . . . . . . . 1 Unidentified Prototypes 4 | . . . . 1 . 1 . . . . . . 1 . . 1 Parts Lost 47 | . 2 . . . . . 8 . . 1 . 9 7 . . 20 Power 6 | . 1 . . . . . . . . . . 2 1 . . 2 Propulsion 17 | . 1 . . . . . 6 . . . . 4 2 . . 4 Utility 14 | . . . . . . . 1 . . . . 2 1 . . 10 Weapon 10 | . . . . . . . 1 . . 1 . 1 3 . . 4 Highest Loss Streak 20 | . 2 . . . . . 3 . . 1 . 9 7 . . 20 To Critical Strikes 1 | . . . . . . . . . . . . . 1 . . . Average Slot Usage (%) 90 | . 92 100 100 100 84 96 89 90 97 99 99 70 74 94 89 60 Engine 6 | . 12 14 14 14 9 7 7 7 7 7 13 6 2 . . . Reactor 1 | . . . . . . . . . . . . . 1 5 8 7 Treads 3 | . . . . . . . 3 7 7 . . . 3 5 9 7 Leg 11 | . . . . . . . . 13 15 28 26 15 14 11 3 . Flight 8 | . 21 28 28 28 27 29 17 7 7 . . . . . . . Device 10 | . 15 14 14 14 18 19 13 7 7 7 12 5 5 17 19 10 Processor 15 | . . . . . 3 15 19 23 27 30 26 23 3 . . 3 Hackware 5 | . 6 14 14 14 9 7 7 7 7 7 6 5 . . . . Protection 5 | . . . . . . . . . . . . . 23 35 32 14 Energy Gun 2 | . 13 14 14 14 7 . . . . . . . 1 . . . Ballistic Gun 5 | . 9 14 14 14 10 15 8 4 . 7 8 5 . . . . Ballistic Cannon 3 | . 1 . . . . . 5 4 . 4 . . 6 11 10 8 Launcher 2 | . . . . . . . . 5 15 1 . . . . . . Naked Turns 84 | . . . . . . . . . . . . . 29 . . 55 Heaviest Build 113 | 14 14 7 7 7 10 16 18 25 25 25 38 38 86 91 103 113 Greatest Support 136 | 26 26 8 8 8 12 17 20 30 30 70 70 70 136 70 98 121 Greatest Overweight (x) 5 | . . . . . . . 5 . . . . 1 1 1 1 1 Average Overweight (x) . | . . . . . . . . . . . . . . 1 . . Largest Inventory Capacity 8 | 8 8 5 5 5 5 5 5 5 5 5 5 5 5 5 5 5 Average Capacity 5 | 7 5 5 5 5 5 5 5 5 5 5 5 5 5 5 5 5 Most Carried 8 | 7 8 5 5 5 5 5 5 5 5 5 5 5 5 4 5 5 Average Carried 4 | 4 5 4 5 4 4 4 3 4 4 4 4 4 3 3 4 4 Final Capacity 8 | 8 5 5 5 5 5 5 5 5 5 5 5 5 5 5 5 5 Final Carried 6 | 6 5 5 5 5 5 5 4 5 5 4 5 4 3 3 5 4 Class Distribution -------------------- 52% | Scavenger-Mutant 25% | Scavenger-Skirmisher 10% | Mutant 6% | Scavenger-Sprinter 3% | Scavenger-Tank Dominant Class ---------------- Mutant | -10/Materials Scavenger-Mutant | -10/Mines Scavenger-Mutant | -10/Exiles Scavenger-Mutant | -9/Mines Scavenger-Mutant | -8/Materials Scavenger-Sprinter | -7/Factory Scavenger-Mutant | -7/Lower Caves Scavenger-Mutant | -7/Lower Caves Scavenger-Mutant | -7/Zion Scavenger-Skirmisher | -6/Proximity Caves Scavenger-Skirmisher | -6/Factory Scavenger-Skirmisher | -5/Factory Scavenger-Mutant | -5/Waste Scavenger-Mutant | -5/Factory Scavenger-Mutant | -5/DSF Scavenger-Tank | -4/Factory Resources | -11 -10 -10 -10 -9 -8 -7 -7 -7 -7 -6 -6 -5 -5 -5 -5 -4 ----------- Run | Yrd Mat Min Exi Min Mat Fac Low Low Zio Pro Fac Fac Was Fac DSF Fac Matter Collected 2572 | 260 400 63 . 10 20 114 203 92 10 106 52 165 347 . 97 633 Remotely 286 | . . . . . . . . . . . . . . . . 286 Salvage Created 1637 | 43 246 . . . . 37 189 143 . . 75 408 . . . 496 Parts 85 | 9 26 . . . . 3 7 3 . . 1 16 . . . 20 Haulers Intercepted 2 | . . . . . . . . . . . . 1 . . . 1 Recyclers Shooed 2 | . 1 . . . . . . . . . . 1 . . . . Parts Field Recycled . | . . . . . . . . . . . . . . . . . Retrieved Matter . | . . . . . . . . . . . . . . . . . Parts Self-Destructed 20 | . . . . . . . 7 12 . 1 . . . . . . Prevented 14 | . . . . . . . . . . 14 . . . . . . Kills | -11 -10 -10 -10 -9 -8 -7 -7 -7 -7 -6 -6 -5 -5 -5 -5 -4 ------- Run | Yrd Mat Min Exi Min Mat Fac Low Low Zio Pro Fac Fac Was Fac DSF Fac Combat Hostiles Destroyed 31 | . 9 . . . . . 6 . . . 1 5 . . . 10 Guns 16 | . 8 . . . . . 4 . . . 1 3 . . . . Cannons 14 | . 1 . . . . . 2 . . . . 1 . . . 10 Classes Destroyed 11 | 1 4 . . . . . 3 . . . 1 1 . . . 1 Worker 4 | . . . . . . . . . . . 1 1 . . . 2 Builder 1 | . . . . . . . . . . . . . . . . 1 Tunneler 2 | 2 . . . . . . . . . . . . . . . . Hauler 2 | . . . . . . . . . . . . 1 . . . 1 Operator 2 | . 1 . . . . . . . . . . 1 . . . . Watcher 4 | . 2 . . . . 1 . . . . . 1 . . . . Swarmer 7 | . 6 . . . . . 1 . . . . . . . . . Grunt 17 | . 3 . . . . . 1 . . . 1 5 . . . 7 Sentry 1 | . . . . . . . 1 . . . . . . . . . Hunter 3 | . . . . . . . 2 . . . . . . . . 1 Programmer 3 | . . . . . . . 1 . . . . . . . . 2 Best Kill Streak 8 | 2 5 . . . . 1 3 . . . 1 8 . . . 6 Combat Bots Only 6 | . 4 . . . . . 3 . . . 1 3 . . . 6 Max Kills in Single Turn 2 | 1 1 . . . . 1 1 . . . 1 2 . . . 1 Gunslinging . | . . . . . . . . . . . . . . . . . Exploded . | . . . . . . . . . . . . . . . . . Melee . | . . . . . . . . . . . . . . . . . Uniques/NPCs Destroyed . | . . . . . . . . . . . . . . . . . Combat | -11 -10 -10 -10 -9 -8 -7 -7 -7 -7 -6 -6 -5 -5 -5 -5 -4 -------- Run | Yrd Mat Min Exi Min Mat Fac Low Low Zio Pro Fac Fac Was Fac DSF Fac Hostile Shots Fired 661 | . 28 31 . . 1 . 96 . . 54 2 38 12 . . 399 Missed 221 | . 10 17 . . 1 . 34 . . 24 . 7 . . . 128 Damage Taken 7178 | . 180 133 . . . . 694 . . 370 29 592 561 . . 4619 Core 1679 | . 32 16 . . . . 151 . . 6 . 58 52 . . 1364 Absorbed by Shields . | . . . . . . . . . . . . . . . . . Ignored by Resistances 926 | . . . . . . . . . . . . . . . . 926 Regen/Repaired (Parts) 17 | . . . . . . . . . . . . . 17 . . . Core Remaining (%) 91 | 100 . . . 80 100 . . . . 77 100 . . . 89 . Volleys Fired 171 | 4 47 . . . 1 3 22 . . 8 3 25 11 . . 47 Largest 3 | 2 2 . . . 2 2 2 . . 2 2 2 2 . . 3 Hottest 210 | 90 90 . . . 60 45 64 . . 67 118 118 123 . . 210 Shots Fired 326 | 7 77 . . . 2 6 42 . . 13 6 46 14 . . 113 Gun 152 | 7 72 . . . 2 6 24 . . 6 3 30 2 . . . Cannon 174 | . 5 . . . . . 18 . . 7 3 16 12 . . 113 Launcher . | . . . . . . . . . . . . . . . . . Special . | . . . . . . . . . . . . . . . . . Kinetic 241 | . 40 . . . 1 6 42 . . 13 3 30 4 . . 102 Thermal 85 | 7 37 . . . 1 . . . . . 3 16 10 . . 11 Explosive . | . . . . . . . . . . . . . . . . . Electromagnetic . | . . . . . . . . . . . . . . . . . Robot Hit Streak 23 | 2 9 . . . . 2 7 . . 5 9 5 10 . . 23 Robot Miss Streak 6 | 2 3 . . . 2 3 2 . . 2 . 2 2 . . 6 Penetration Max 1 | . . . . . . . . . . 1 . 1 . . . 1 Secondary Targets . | . . . . . . . . . . . . . . . . . Shots Hit Robots 204 | 4 40 . . . . 4 29 4 . 9 6 25 12 . . 71 Core Hits 85 | 2 17 . . . . 3 16 2 . 2 3 14 1 . . 25 Critical Kills 1 | . . . . . . . . . . . . 1 . . . . Critical Parts Destroyed 2 | . 1 . . . . . . . . . . 1 . . . . Critical Strikes 16 | . 1 . . . . . 1 . . . . 2 1 . . 11 Meltdown 1 | . . . . . . . . . . . . 1 . . . . Destroy 3 | . 1 . . . . . . . . . . 1 1 . . . Blast 12 | . . . . . . . 1 . . . . . . . . 11 Melee Attacks 7 | . . . . . . . . 4 . . . . 2 . . 1 Impact . | . . . . . . . . . . . . . . . . . Slashing 4 | . . . . . . . . 4 . . . . . . . . Piercing 2 | . . . . . . . . . . . . . 2 . . . Sneak Attacks . | . . . . . . . . . . . . . . . . . Combat Hostiles . | . . . . . . . . . . . . . . . . . Follow-up Attacks . | . . . . . . . . . . . . . . . . . Damage Inflicted 5970 | 46 503 . . . . 72 618 227 . 121 245 840 365 . . 2933 Guns 1682 | 46 452 . . . . 72 405 . . 74 78 504 51 . . . Cannons 3855 | . 51 . . . . . 213 . . 47 134 196 283 . . 2931 Explosions 140 | . . . . . . . . . . . . 140 . . . . Melee 258 | . . . . . . . . 227 . . . . 31 . . . Ramming 35 | . . . . . . . . . . . 33 . . . . 2 Kinetic 4490 | . 306 . . . . 72 618 . . 121 78 504 77 . . 2714 Thermal 1187 | 46 197 . . . . . . . . . 134 336 257 . . 217 Explosive . | . . . . . . . . . . . . . . . . . Electromagnetic . | . . . . . . . . . . . . . . . . . Impact . | . . . . . . . . . . . . . . . . . Slashing 227 | . . . . . . . . 227 . . . . . . . . Piercing 31 | . . . . . . . . . . . . . 31 . . . Highest Corruption 3 | . . . . . . . . . . . 1 . . 3 3 . Average Corruption 2 | . . . . . . . . . . . 1 . . 3 2 . Corruption Purged 3 | . . . . . . . . . . . . . . . 3 . Corruption Blocked . | . . . . . . . . . . . . . . . . . Effects 10 | . . . . . . . . . . . 2 . . . 8 . Message Errors 2 | . . . . . . . . . . . . . . . 2 . Matter Fused 1 | . . . . . . . . . . . . . . . 1 . Heat Flow Errors 2 | . . . . . . . . . . . 1 . . . 1 . Energy Discharges 1 | . . . . . . . . . . . . . . . 1 . Data Loss (minor) 3 | . . . . . . . . . . . . . . . 3 . Alerts 1 | . . . . . . . . . . . 1 . . . . . Overload Shots . | . . . . . . . . . . . . . . . . . Overflow Damage 170 | . . . . . . . . 47 . 22 5 47 . . . 49 Projectiles 76 | . . . . . . . . . . 22 5 . . . . 49 Explosions 47 | . . . . . . . . . . . . 47 . . . . Melee 47 | . . . . . . . . 47 . . . . . . . . Knockbacks 16 | . 1 . . . . . 1 . . . . . . . . 14 Impact . | . . . . . . . . . . . . . . . . . Kinetic 15 | . 1 . . . . . 1 . . . . . . . . 13 Secondary 1 | . . . . . . . . . . . . . . . . 1 Self-Inflicted Damage 1 | . . . . . . . . . . . . . . . . 1 Shots . | . . . . . . . . . . . . . . . . . Rammed 1 | . . . . . . . . . . . . . . . . 1 Targets Rammed 3 | . . . . . . . . . . . 2 . . . . 1 Kicked 2 | . . . . . . . . . . . 2 . . . . . Crushed . | . . . . . . . . . . . . . . . . . Highest Temperature 615 | 90 160 . . . 3 . 17 . . 8 114 472 144 . 116 615 Average Temperature 76 | 46 36 . . . 3 . 8 . . 5 51 186 44 . 79 85 Received Heat Transfer 1715 | . 54 24 . . . . 75 . . 84 . 297 . . . 1181 Effects 7 | . . . . . . . . . . . . 2 . . . 5 Shutdowns 3 | . . . . . . . . . . . . 1 . . . 2 Energy Bleed 1 | . . . . . . . . . . . . . . . . 1 Matter Decay 1 | . . . . . . . . . . . . 1 . . . . Damage (minor) 1 | . . . . . . . . . . . . . . . . 1 Damage (core) 1 | . . . . . . . . . . . . . . . . 1 Siege Activations . | . . . . . . . . . . . . . . . . . Robots Corrupted . | . . . . . . . . . . . . . . . . . Combat Hostiles . | . . . . . . . . . . . . . . . . . Parts Fried . | . . . . . . . . . . . . . . . . . Impact Corruptions . | . . . . . . . . . . . . . . . . . Robots Melted 1 | . . . . . . . . . . . . 1 . . . . Combat Hostiles 1 | . . . . . . . . . . . . 1 . . . . Parts Melted 2 | . . . . . . . . . . . . 2 . . . . Heat Transferred 1738 | 112 497 . . . . . . . . . 150 374 383 . . 222 Parts Sabotaged . | . . . . . . . . . . . . . . . . . Parts Stolen . | . . . . . . . . . . . . . . . . . Parts Stripped . | . . . . . . . . . . . . . . . . . Power Chain Reactions . | . . . . . . . . . . . . . . . . . Alert | -11 -10 -10 -10 -9 -8 -7 -7 -7 -7 -6 -6 -5 -5 -5 -5 -4 ------- Run | Yrd Mat Min Exi Min Mat Fac Low Low Zio Pro Fac Fac Was Fac DSF Fac Peak Influence 867 | 10 239 170 . 70 106 140 . . . . 155 127 61 . 393 867 Initial 205 | . 6 2 . . 27 47 . . . . 44 2 39 . . 205 Average 175 | 1 97 80 . 16 49 89 . . . . 78 68 42 . 173 703 Maximum Alert Level 3 | . 1 . . . . . . . . . . . . . 1 3 Low Security (%) 79 | 100 87 100 . 100 100 100 . . . . 100 100 100 100 72 . Level 1 4 | . 12 . . . . . . . . . . . . . 27 2 Level 2 6 | . . . . . . . . . . . . . . . . 40 Level 3 8 | . . . . . . . . . . . . . . . . 56 Level 4 . | . . . . . . . . . . . . . . . . . Level 5 . | . . . . . . . . . . . . . . . . . High Security . | . . . . . . . . . . . . . . . . . Max Security . | . . . . . . . . . . . . . . . . . Sterilizations 1 | . . . . . . . . . . . . . . . 1 . Squads Dispatched 8 | . 1 . . . . 2 . . . . 1 1 . . 1 2 Investigation 1 | . . . . . . . . . . . . 1 . . . . Extermination 2 | . . . . . . 1 . . . . 1 . . . . . Reinforcement 5 | . 1 . . . . 1 . . . . . . . . 1 2 Assault . | . . . . . . . . . . . . . . . . . Garrison . | . . . . . . . . . . . . . . . . . Intercept . | . . . . . . . . . . . . . . . . . Searches Triggered . | . . . . . . . . . . . . . . . . . Construction Impeded . | . . . . . . . . . . . . . . . . . Haulers Reinforced . | . . . . . . . . . . . . . . . . . Active Scanning Responses . | . . . . . . . . . . . . . . . . . Cargo Convoy Interrupts . | . . . . . . . . . . . . . . . . . Stealth | -11 -10 -10 -10 -9 -8 -7 -7 -7 -7 -6 -6 -5 -5 -5 -5 -4 --------- Run | Yrd Mat Min Exi Min Mat Fac Low Low Zio Pro Fac Fac Was Fac DSF Fac Distress Signals 3 | . . . . 1 1 . . . . . . . . . . 1 Communications Jammed . | . . . . . . . . . . . . . . . . . Distress Signals . | . . . . . . . . . . . . . . . . . Times Spotted 100 | . 14 13 . . 4 5 10 . . 8 4 7 3 . 6 26 Peak Tracking Total 8 | . 5 6 . . 8 2 7 . . 3 3 4 3 . 4 8 Tactical Retreats 13 | . 1 3 . . 1 . 3 . . . 1 . . . . 4 Traps | -11 -10 -10 -10 -9 -8 -7 -7 -7 -7 -6 -6 -5 -5 -5 -5 -4 ------- Run | Yrd Mat Min Exi Min Mat Fac Low Low Zio Pro Fac Fac Was Fac DSF Fac Traps Triggered 4 | . 1 . . . . 1 . . . . . 1 . 1 . . Indirectly . | . . . . . . . . . . . . . . . . . Trap Hack Attempts . | . . . . . . . . . . . . . . . . . Triggered . | . . . . . . . . . . . . . . . . . Disarmed . | . . . . . . . . . . . . . . . . . Reprogrammed . | . . . . . . . . . . . . . . . . . Reused . | . . . . . . . . . . . . . . . . . Traps Extracted . | . . . . . . . . . . . . . . . . . Installed . | . . . . . . . . . . . . . . . . . Triggered 1 | . . . . 1 . . . . . . . . . . . . Machines | -11 -10 -10 -10 -9 -8 -7 -7 -7 -7 -6 -6 -5 -5 -5 -5 -4 ---------- Run | Yrd Mat Min Exi Min Mat Fac Low Low Zio Pro Fac Fac Was Fac DSF Fac Machines Disabled 9 | . . . . . . . . . . . . 3 . . . 6 Max in Single Turn 3 | . . . . . . . . . . . . 3 . . . 1 Machines Repaired . | . . . . . . . . . . . . . . . . . Machines Dismantled . | . . . . . . . . . . . . . . . . . Machines Sabotaged . | . . . . . . . . . . . . . . . . . Overloaded Fab Kills . | . . . . . . . . . . . . . . . . . Hacking | -11 -10 -10 -10 -9 -8 -7 -7 -7 -7 -6 -6 -5 -5 -5 -5 -4 --------- Run | Yrd Mat Min Exi Min Mat Fac Low Low Zio Pro Fac Fac Was Fac DSF Fac Machines Accessed 22 | . 8 . 4 . 1 6 1 1 . . . . . 1 . . Terminals 12 | . 6 . . . 1 4 . . . . . . . 1 . . Fabricators 1 | . . . . . . 1 . . . . . . . . . . Repair Stations . | . . . . . . . . . . . . . . . . . Recycling Units 3 | . 2 . . . . 1 . . . . . . . . . . Scanalyzers . | . . . . . . . . . . . . . . . . . Garrison Access . | . . . . . . . . . . . . . . . . . Total Hacks 94 | . 21 . 49 . 7 13 1 1 . . . . . 2 . . Successful 72 | . 10 . 49 . 3 7 1 1 . . . . . 1 . . Failed 22 | . 11 . . . 4 6 . . . . . . . 1 . . Catastrophic 2 | . 2 . . . . . . . . . . . . . . . Database Lockouts . | . . . . . . . . . . . . . . . . . Manual 32 | . 11 . . . 4 6 . . . . 7 . . 2 . 2 Terminals 36 | . 18 . . . 7 9 . . . . . . . 2 . . Fabricators 2 | . . . . . . 2 . . . . . . . . . . Repair Stations . | . . . . . . . . . . . . . . . . . Recycling Units 5 | . 3 . . . . 2 . . . . . . . . . . Scanalyzers . | . . . . . . . . . . . . . . . . . Garrison Access . | . . . . . . . . . . . . . . . . . Terminal Hacks 64 | . 6 . 49 . 2 4 1 1 . . . . . 1 . . Record 49 | . . . 49 . . . . . . . . . . . . . Open Door 2 | . . . . . . . 1 1 . . . . . . . . Open DSF 1 | . . . . . . . . . . . . . . 1 . . Level Access Points 2 | . 1 . . . . 1 . . . . . . . . . . Branch Access Points 2 | . 1 . . . . 1 . . . . . . . . . . Emergency Access Points 1 | . . . . . . 1 . . . . . . . . . . Terminal Index 2 | . 1 . . . . 1 . . . . . . . . . . Alert Level 1 | . 1 . . . . . . . . . . . . . . . Unreport Threat 1 | . 1 . . . . . . . . . . . . . . . Locate Traps 2 | . 1 . . . 1 . . . . . . . . . . . Dispatch Records 1 | . . . . . 1 . . . . . . . . . . . Fabricator Hacks 1 | . . . . . . 1 . . . . . . . . . . Build 1 | . . . . . . 1 . . . . . . . . . . Repair Station Hacks . | . . . . . . . . . . . . . . . . . Recycling Unit Hacks 2 | . 2 . . . . . . . . . . . . . . . Retrieve Components 2 | . 2 . . . . . . . . . . . . . . . Scanalyzer . | . . . . . . . . . . . . . . . . . Garrison Access Hacks . | . . . . . . . . . . . . . . . . . Unauthorized Hacks 5 | . 2 . . . 1 2 . . . . . . . . . . Terminals 5 | . 2 . . . 1 2 . . . . . . . . . . Assimilate 1 | . . . . . . 1 . . . . . . . . . . Botnet 4 | . 2 . . . 1 1 . . . . . . . . . . Fabricators . | . . . . . . . . . . . . . . . . . Repair Stations . | . . . . . . . . . . . . . . . . . Recycling Units . | . . . . . . . . . . . . . . . . . Scanalyzers . | . . . . . . . . . . . . . . . . . Garrison Access . | . . . . . . . . . . . . . . . . . Data Cores Recovered 1 | . 1 . . . . . . . . . . . . . . . Used 1 | . 1 . . . . . . . . . . . . . . . Hacking Detections 15 | . 7 . . . 1 6 . . . . . . . 1 . . Full Trace Events . | . . . . . . . . . . . . . . . . . Feedback Events . | . . . . . . . . . . . . . . . . . Feedback Blocked . | . . . . . . . . . . . . . . . . . Robot Schematics Acquired 2 | . . . . . . . . . 2 . . . . . . . Robots Built 3 | . . . . . . 3 . . . . . . . . . . Authchips . | . . . . . . . . . . . . . . . . . Time 67 | . . . . . . 67 . . . . . . . . . . Total Robot Build Rating 12 | . . . . . . 12 . . . . . . . . . . Part Schematics Acquired 15 | . . . . . . . . . 15 . . . . . . . Parts Built . | . . . . . . . . . . . . . . . . . Authchips . | . . . . . . . . . . . . . . . . . Time . | . . . . . . . . . . . . . . . . . Total Part Build Rating . | . . . . . . . . . . . . . . . . . Parts Repaired . | . . . . . . . . . . . . . . . . . Time . | . . . . . . . . . . . . . . . . . Parts Recycled . | . . . . . . . . . . . . . . . . . Recycled Matter . | . . . . . . . . . . . . . . . . . Retrieved Matter . | . . . . . . . . . . . . . . . . . Retrieved Components 14 | . 14 . . . . . . . . . . . . . . . Parts Scanalyzed . | . . . . . . . . . . . . . . . . . Part Schematics Acquired . | . . . . . . . . . . . . . . . . . Parts Damaged . | . . . . . . . . . . . . . . . . . Bothacking | -11 -10 -10 -10 -9 -8 -7 -7 -7 -7 -6 -6 -5 -5 -5 -5 -4 ------------ Run | Yrd Mat Min Exi Min Mat Fac Low Low Zio Pro Fac Fac Was Fac DSF Fac Used RIF Installer . | . . . . . . . . . . . . . . . . . Robots Hacked 1 | . . . . . . . . . . . . . . . . 1 Non-combat . | . . . . . . . . . . . . . . . . . Combat 1 | . . . . . . . . . . . . . . . . 1 Robot Hacks Applied 1 | . . . . . . . . . . . . . . . . 1 parse_system 1 | . . . . . . . . . . . . . . . . 1 Relay Couplers Released . | . . . . . . . . . . . . . . . . . Fabnet Peak Effective % . | . . . . . . . . . . . . . . . . . Robots Rewired . | . . . . . . . . . . . . . . . . . Allies Hacked 1 | . . . . . . . . . . . 1 . . . . . Hacks Repelled . | . . . . . . . . . . . . . . . . . Allies | -11 -10 -10 -10 -9 -8 -7 -7 -7 -7 -6 -6 -5 -5 -5 -5 -4 -------- Run | Yrd Mat Min Exi Min Mat Fac Low Low Zio Pro Fac Fac Was Fac DSF Fac Total Allies 29 | . . 1 . . . 4 . . 4 . . . 19 . . 1 Largest Group 18 | . . 1 . . . 4 . . 4 4 2 2 18 18 15 9 Highest-Rated Group 638 | . . 31 . . . 86 . . 154 149 70 70 638 637 495 345 Highest-Rated Ally 50 | . . 31 . . . 26 . . 40 40 36 36 50 50 50 50 Zionite Dispatches 1 | . . . . . . . . . . . . . . . . 1 Demo 1 | . . . . . . . . . . . . . . . . 1 Total Orders . | . . . . . . . . . . . . . . . . . Ally Attacks 287 | . . 11 . . . 7 . . . 22 13 6 94 . 77 57 Total Damage 9571 | . . 228 . . . 117 . . . 953 218 95 3329 . 2431 2200 Kills 46 | . . 2 . . . . . . . 10 2 . 7 . 10 15 Allies Corrupted 3 | . . . . . . . . . . . . . . 3 . . Allies Melted 1 | . . . . . . . . . . . . . . . . 1 Intel | -11 -10 -10 -10 -9 -8 -7 -7 -7 -7 -6 -6 -5 -5 -5 -5 -4 ------- Run | Yrd Mat Min Exi Min Mat Fac Low Low Zio Pro Fac Fac Was Fac DSF Fac Robot Analysis Total . | . . . . . . . . . . . . . . . . . Derelict Logs Recovered 6 | . . 1 . 1 . . . 2 1 1 . . . . . . Drone Launches . | . . . . . . . . . . . . . . . . . Drone Recoveries . | . . . . . . . . . . . . . . . . . Decoded 0b10 Intel 21 | . . . . . . . . . . . 12 6 3 . . . Traps 2 | . . . . . . . . . . . 2 . . . . . Emergency Access 1 | . . . . . . . . . . . . 1 . . . . Items 13 | . . . . . . . . . . . 7 3 3 . . . Machines 4 | . . . . . . . . . . . 2 2 . . . . Guards 1 | . . . . . . . . . . . 1 . . . . . Zionite Intel Received 1 | . . . . . . . . . . . 1 . . . . . Main Access 1 | . . . . . . . . . . . 1 . . . . . Exploration | -11 -10 -10 -10 -9 -8 -7 -7 -7 -7 -6 -6 -5 -5 -5 -5 -4 ------------- Run | Yrd Mat Min Exi Min Mat Fac Low Low Zio Pro Fac Fac Was Fac DSF Fac Turns Passed 6731 | 71 457 152 189 251 51 325 458 797 831 1023 449 153 464 163 350 547 Spaces Moved 6439 | 48 639 397 510 570 107 547 532 617 649 665 319 46 280 66 135 312 Core 175 | 7 . . . . . . 3 . . . . 1 46 . . 118 Treads 568 | . . . . . . . 125 52 . . . 4 69 66 135 117 Legs 2404 | . . . . . . . . 565 649 665 319 41 165 . . . Wheels 126 | 41 85 . . . . . . . . . . . . . . . Hover 187 | . . . . . . . 110 . . . . . . . . 77 Flight 2979 | . 554 397 510 570 107 547 294 . . . . . . . . . Fastest Speed 29 | 50 37 37 37 37 34 29 29 120 120 120 120 100 50 240 160 50 Average Speed 84 | 84 44 37 37 37 34 30 69 124 120 120 120 123 132 240 235 114 Slowest Speed 300 | 90 90 37 37 37 34 34 300 170 120 120 120 160 240 240 240 240 Overloaded Moves . | . . . . . . . . . . . . . . . . . Propulsion Burnouts . | . . . . . . . . . . . . . . . . . Robots Hopped 13 | . 2 5 . 1 . 5 . . . . . . . . . . Cave-ins Triggered . | . . . . . . . . . . . . . . . . . Exploration Rate (%) 54 | 5 93 84 90 97 16 18 73 71 86 78 9 2 95 3 93 13 Regions Visited 16 Branch Regions 7 Pre-discovered Areas 3 | . . . 1 . . . . 1 . 1 . . . . . . Known Exits Taken 9 | . 1 . . 1 . 1 1 1 1 1 1 . . 1 . . Unknown Exits Taken 4 | 1 . 1 1 . 1 . . . . . . . . . . . Scrap Searched 13 | . . 1 . 1 . . 3 4 2 2 . . . . . . Spaces Dug . | . . . . . . . . . . . . . . . . . Terrain Destroyed 60 | . . . . . . . . . . 1 . 30 1 . . 28 Melee . | . . . . . . . . . . . . . . . . . Projectile 36 | . . . . . . . . . . 1 . 6 1 . . 28 AOE 24 | . . . . . . . . . . . . 24 . . . . Terrain Rammed . | . . . . . . . . . . . . . . . . . Walls Destroyed . | . . . . . . . . . . . . . . . . . Machines Disabled . | . . . . . . . . . . . . . . . . . Actions | -11 -10 -10 -10 -9 -8 -7 -7 -7 -7 -6 -6 -5 -5 -5 -5 -4 --------- Run | Yrd Mat Min Exi Min Mat Fac Low Low Zio Pro Fac Fac Was Fac DSF Fac Total 7445 | 71 741 396 509 608 118 695 579 641 703 881 379 100 360 72 178 414 Wait 474 | . 4 3 . 37 2 110 8 . 44 184 45 9 8 4 2 14 Move 6398 | 47 634 386 509 567 106 536 531 616 648 664 318 46 279 65 134 312 Hop 13 | . 2 5 . 1 . 5 . . . . . . . . . . Pick Up 147 | 13 20 1 . 1 4 9 5 8 5 10 5 8 24 1 16 17 Fast Attach . | . . . . . . . . . . . . . . . . . Attach 90 | 7 10 . . . 3 4 8 3 2 2 3 8 21 . 2 17 Detach 14 | . 2 . . . . 1 3 . 1 . . 1 3 . 2 1 Swap 32 | . 5 . . 1 1 3 1 5 . 3 1 1 3 1 6 1 Drop 78 | . 17 1 . 1 1 6 1 5 3 10 2 2 9 1 16 3 Fire 171 | 4 47 . . . 1 3 22 . . 8 3 25 11 . . 47 Melee 7 | . . . . . . . . 4 . . . . 2 . . 1 Ram 1 | . . . . . . . . . . . . . . . . 1 Kick 2 | . . . . . . . . . . . 2 . . . . . Crush . | . . . . . . . . . . . . . . . . . Escape Stasis 18 | . . . . . . 18 . . . . . . . . . . Rewire . | . . . . . . . . . . . . . . . . . Trap . | . . . . . . . . . . . . . . . . . Miscellaneous . | . . . . . . . . . . . . . . . . . Route ------- -11/Scrapyard -10/Materials (discovered 4 exits: *Mat x3 / *Min) -10/Mines (discovered 3 exits: *Mat x2 / *Exi) -10/Exiles (discovered 2 exits: [*Min x2]) -9/Mines (discovered 2 exits: *Mat x2) -8/Materials -7/Factory (discovered 6 exits: Fac x4 / *Low x2) -7/Lower Caves -7/Lower Caves (discovered 2 exits: *Fac / *Zio) -7/Zion -6/Proximity Caves -6/Factory (discovered 5 exits: *Fac x4 / [*Low]) -5/Factory -5/Waste -5/Factory -5/DSF -4/Factory History --------- Turn | Location | Event 29 | -11/Scrapyard | Discovered new exit (range 15) 72 | -11/Scrapyard | Entered Materials 226 | -10/Materials | Discovered new exit (range 3) 312 | -10/Materials | Identified exit to Mines 312 | -10/Materials | Identified exit to Materials 324 | -10/Materials | Build established: Mutant 529 | -10/Materials | Entered Mines 536 | -10/Mines | Met a Derelict bent on vengeance 568 | -10/Mines | Received a Mining Laser from a helpful Derelict 574 | -10/Mines | Discovered exit to Materials (range 13) 640 | -10/Mines | Discovered exit to Materials (range 4) 651 | -10/Mines | Learned Materials interactive machine intel 669 | -10/Mines | Met a Derelict testing a Signal Generator 670 | -10/Mines | Found a damaged Exp. Sensor Array with a note attached 672 | -10/Mines | Found Prototype Device 675 | -10/Mines | Deemed a non-threat by the Exiles lab entrance 675 | -10/Mines | Discovered new exit (range 5) 681 | -10/Mines | Entered Exiles 688 | -10/Exiles | Discovered new exit (range 15) 693 | -10/Exiles | Met 8R-AWN 700 | -10/Exiles | Met EX-HEX 714 | -10/Exiles | Met EX-DEC 727 | -10/Exiles | Visited The Gauntlet 730 | -10/Exiles | Build established: Scavenger-Mutant 780 | -10/Exiles | Learned location of Zion (-7) 795 | -10/Exiles | Discovered new exit (range 14) 816 | -10/Exiles | Met EX-BIN 870 | -10/Exiles | Entered Mines 881 | -9/Mines | Identified Exp. Sensor Array 948 | -9/Mines | Assembled infested the area 953 | -9/Mines | Assisted by a Guerilla fighting off Assembled 1037 | -9/Mines | Discovered new exit (range 12) 1043 | -9/Mines | Identified exit to Materials 1121 | -9/Mines | Entered Materials 1121 | -8/Materials | Evolved 4 slots: Propulsion x1, Utility x3 1122 | -8/Materials | Loaded intel: 19 interactive machine locations 1166 | -8/Materials | Discovered new exit (range 15) 1172 | -8/Materials | Entered Factory 1172 | -7/Factory | Evolved 2 slots: Propulsion x1, Utility x1 1308 | -7/Factory | Fabricated B-48 Gladiator (x3) 1333 | -7/Factory | Discovered new exit (range 15) 1422 | -7/Factory | Identified exit to Lower Caves 1422 | -7/Factory | Identified exit to Factory 1459 | -7/Factory | Build established: Scavenger-Sprinter 1497 | -7/Factory | Entered Lower Caves 1525 | -7/Lower Caves | Ambushed by research squad 1581 | -7/Lower Caves | P-60 Hacker assimilated allied 94-AJA(k) 1621 | -7/Lower Caves | Encountered a Warlord checkpoint 1622 | -7/Lower Caves | Lost 3 parts (2n1w) 1668 | -7/Lower Caves | Attracted the attention of an 0b10 checkpoint 1728 | -7/Lower Caves | Lost 3 parts (2n1u) 1932 | -7/Lower Caves | Discovered new exit (range 6) 1954 | -7/Lower Caves | Identified exit to Lower Caves 1955 | -7/Lower Caves | Entered another Lower Caves area 2005 | -7/Lower Caves | Discovered exit to Factory (range 8) 2026 | -7/Lower Caves | Build established: Scavenger-Mutant 2233 | -7/Lower Caves | Encountered a Warlord checkpoint 2712 | -7/Lower Caves | Discovered new exit (range 15) 2740 | -7/Lower Caves | Learned Factory non-interactive machine intel 2750 | -7/Lower Caves | Identified exit to Zion 2752 | -7/Lower Caves | Entered Zion 2972 | -7/Zion | Acquired unknown access codes intercepted by a Zionite 3150 | -7/Zion | Imprinted 3152 | -7/Zion | Declared Zion's savior 3511 | -7/Zion | Discovered new exit (range 14) 3535 | -7/Zion | Identified exit to Proximity Caves 3583 | -7/Zion | Entered Proximity Caves 3583 | -6/Proximity Caves | Accompanied by 4 allies 3730 | -6/Proximity Caves | Build established: Scavenger-Skirmisher 4149 | -6/Proximity Caves | Received a Behemoth hack from an annoying Tinkerer 4261 | -6/Proximity Caves | Spotted B-75 Beast 4406 | -6/Proximity Caves | Attracted the attention of an 0b10 checkpoint 4502 | -6/Proximity Caves | Discovered exit to Factory (range 10) 4606 | -6/Proximity Caves | Entered Factory 4606 | -6/Factory | Accompanied by 2 allies 4606 | -6/Factory | Evolved 2 slots: Power x1, Utility x1 4607 | -6/Factory | Loaded intel: 289 non-interactive machine locations 4984 | -6/Factory | Discovered new exit (range 12) 5024 | -6/Factory | Discovered new exit (range 15) 5030 | -6/Factory | Retrieved Zion intel report: Main Access 5030 | -6/Factory | Identified exit to Factory 5055 | -6/Factory | Entered another Factory area 5055 | -5/Factory | Accompanied by 2 allies 5055 | -5/Factory | Evolved 2 slots: Utility x2 5056 | -5/Factory | Identified exit to Extension 5183 | -5/Factory | Lost 9 parts (2p4n2u1w) 5208 | -5/Factory | Sucked down chute 5208 | -5/Factory | Entered Waste 5229 | -5/Waste | Spotted C-40 Crusher 5233 | -5/Waste | Found Enh. Force Lance 5261 | -5/Waste | Crushed by Compactor (0 parts destroyed, 2 dropped) 5267 | -5/Waste | Crushed by Compactor (1 part destroyed) 5270 | -5/Waste | Crushed by Compactor (1 part destroyed, 1 dropped) 5273 | -5/Waste | Crushed by Compactor (1 part destroyed, 1 dropped) 5276 | -5/Waste | Crushed by Compactor (1 part destroyed, 2 dropped) 5279 | -5/Waste | Crushed by Compactor (1 part destroyed, 1 dropped) 5291 | -5/Waste | Crushed by Compactor (0 parts destroyed, 1 dropped) 5294 | -5/Waste | Crushed by Compactor (1 part destroyed, 2 dropped) 5308 | -5/Waste | Spotted C-40 Crusher 5311 | -5/Waste | Spotted C-40 Crusher 5317 | -5/Waste | Warlord forces began an assault 5323 | -5/Waste | Allies destroyed C-40 Crusher 5325 | -5/Waste | Lost 7 parts (1p2n1u3w) 5414 | -5/Waste | Spotted C-40 Crusher 5416 | -5/Waste | Spotted C-40 Crusher 5417 | -5/Waste | Allies destroyed C-40 Crusher 5420 | -5/Waste | Allies destroyed C-40 Crusher 5447 | -5/Waste | Found Prototype Device 5448 | -5/Waste | Identified Exp. Thermal Shield 5525 | -5/Waste | Spotted C-40 Crusher 5529 | -5/Waste | Allies destroyed C-40 Crusher 5622 | -5/Waste | Build established: Scavenger-Mutant 5627 | -5/Waste | Discovered new exit (range 13) 5672 | -5/Waste | Entered Factory 5672 | -5/Factory | Accompanied by 18 allies 5833 | -5/Factory | Identified exit to DSF 5835 | -5/Factory | Entered DSF 5835 | -5/DSF | Accompanied by 15 allies 5858 | -5/DSF | Lost 3 allies 5882 | -5/DSF | Additional patrols routed to DSF 5928 | -5/DSF | Lost 4 allies 6159 | -5/DSF | Discovered new exit (range 11) 6169 | -5/DSF | Sterilization system engaged 6185 | -5/DSF | Entered Factory 6185 | -4/Factory | Accompanied by 9 allies 6185 | -4/Factory | Evolved 2 slots: Propulsion x1, Weapon x1 6369 | -4/Factory | Spotted B-86 Titan 6445 | -4/Factory | Lost 6 allies 6571 | -4/Factory | Core integrity fell below 50% 6593 | -4/Factory | Core integrity fell below 20% 6611 | -4/Factory | Lost 20 parts (2p4n10u4w) 6614 | -4/Factory | Zion Demo squad teleported in 6733 | -4/Factory | Core destroyed Last Messages --------------- Extracted 18 matter. Acquired Med. Matter Pod. Slug penetrates UL-RR9(d). UL-RR9(d) destroyed. Acquired Antimatter Reactor. Slug penetrates Wall. Dropped Med. Matter Pod. Slug penetrates Wall. Penetrated by Slug. H-77 Assassin destroyed. Penetrated by Slug. M-28 Smith repairs Antigrav System. Power failure, Antimatter Reactor shutdown. Penetrated by Slug. Slug penetrates Wall. M-28 Smith repairs Lgt. Antimatter Reactor. Overheating: Energy bleed (-62). Overheating: Antimatter Reactor damaged (-16). Power failure, Antimatter Reactor shutdown. Overheating: Core damaged (-230). Map ----- +----------------------------------------------------+ | ????????????? ???????????? ???????????????? | | ????????????? ???????? ??????????????? | | ?????????????# ##### ??????????????? | | ?????????????# ??????????????? | | ?????????????# ## T#######?????????????????????? | | ?????????????# #####???????????????????????????? | | ?????????????# #???????????????????????????????? | | ########????## ##??????????????????????????????? | | #????# #??????????????????????????????? | | #????# #####??????????????????????????? | | #????# +??????????????????????????? | | #????# #####??????????????????????????? | | #????# #??????????????????????????????? | | #????### ###??????????????????????????????? | | #??????# #????????????????????????????????? | | ######/######## ###########+#????????????????????? | | =%*!== * #####????????????????? | | #################; ##### ????????????????? | | ?????????????????# #???# ?????????????????? | | ?????????????????# #???# ??????????????????? | | ?????????????????# #???# ???????????????????? | | ???????????????###+##;##### ????????????????????? | | ???????????????#; + #????????????????????? | | ???????????????#; h% # #????????????????????? | | ????????????????# ** # #????????????????????? | | ??????????????#;; ** @ !#????????????????????? | | ????????????????# *** ##;####?????????????????? | | ????????????????# # #?????????????????? | | ????????????????# w # #?????????????????? | | ????????????????# # #?????????????????? | | ????????????????# m # #?????????????????? | | ????????????????#####/##########?????????????????? | | ???????????????????? ??????????????????????????? | | ??????????????????? ??????????????????????????? | | ?????????????????? ??????????????????????????? | | ?????????????????? ?? ??????????????????????????? | | ????????????????? ?????????????????????????????? | | ????????????????###??????????????????????????????? | | ?????????????????????????????????????????????????? | | ?????????????????????????????????????????????????? | | ?????????????????????????????????????????????????? | | ?????????????????????????????????????????????????? | | ?????????????????????????????????????????????????? | | ?????????????????????????????????????????????????? | | ?????????????????????????????????????????????????? | | ?????????????????????????????????????????????????? | | ?????????????????????????????????????????????????? | | ?????????????????????????????????????????????????? | | ?????????????????????????????????????????????????? | | ?????????????????????????????????????????????????? | +----------------------------------------------------+ Best States ------------- Heat Dissipation 97 Energy Generation 37 Energy Capacity 550 Matter Stores 300 Matter Capacity 300 Sight Range 22 Robot Scan Range 20 Terrain Scan Density 110 Armor Coverage 1205 Resistance: KI 25 Resistance: TH 30 Evasion (%) 72 Targeting Accuracy 6 Recoil Reduction 4 Particle Charging 20 Offensive Hacking 10 Item Schematics ----------------- Phase Shifter | -7/Zion | Archive Coolant Injector | -7/Zion | Archive Imp. Coolant Injector | -7/Zion | Archive Imp. Remote Datajack | -7/Zion | Archive Remote Datajack | -7/Zion | Archive Imp. Hardlight Generator | -7/Zion | Archive Shock Absorption System | -7/Zion | Archive Adv. Heat Sink | -7/Zion | Archive Component Analysis Suite | -7/Zion | Archive Mak. Hover Unit | -7/Zion | Archive Greatsword | -7/Zion | Archive Hvy. Rocket Launcher | -7/Zion | Archive Arm. Leg | -7/Zion | Archive Fission Core | -7/Zion | Archive Imp. Field Recycling Unit | -7/Zion | Archive Robot Schematics ------------------ K-01 Serf | -7/Zion | Archive I-36 Angel | -7/Zion | Archive Fabricated ------------ B-48 Gladiator | x3 | -7/Factory | Preloaded Alien Tech Used ----------------- None Achievements -------------- Dynamic Key Challenges ------------ None Game ------ Seed MyomerCloakingBoregun Manual? 0 Play Time 01:48:25 Cumulative 22.7 hours Start 2024.04.09 @ 21:07:08 End 2024.04.10 @ 00:56:09 Sessions 2 Manual Loads 0 Difficulty Rogue Special Mode None Game No. 15 Rogue 15 Adventurer 0 Explorer 0 Win Type - Total 0 Types 0/0/0/0/0/0/0/0/0 Lore% 20 Gallery% 27 Achievement% 25 Wizard Run 0 Options --------- Layout 0 ASCII 0 Keyboard 0 Movement Mouse Keybinds 0 Fullscreen 1 Font 18/SmallcapsGlow Map View 76x50 Zoom Use 0% Tactical HUD 0 Map Filters NONE Filters NONE Steam 1 RUN: 747c0a33-86ff-4c12-a141-5d8b8caa1a01